[Event "1st Henriquez Urena Memorial 2022"]
[Site "Santo Domingo"]
[Date "2022.09.22"]
[Round "9.7"]
[White "Polanco Nunez, Yoel Starling"]
[Black "Lugo Matos, Richards Reynier"]
[Result "1-0"]
[ECO "E68"]
[WhiteElo "2199"]
[BlackElo "2157"]
[Annotator "TA"]
[PlyCount "112"]
[EventDate "2022.09.16"]
[EventType "swiss"]
[EventCountry "DOM"]
[SourceTitle "playchess.com"]
[Source "ChessBase"]
[SourceQuality "1"]
[TimeControl "5400+30"]

{[%evp 17,112,32,30,32,31,39,27,16,23,0,0,-27,-25,-37,-42,-57,0,0,0,0,0,0,0,0,36,0,170,168,173,162,161,0,0,0,0,-97,-86,-113,-114,-115,0,0,0,0,0,0,0,0,0,0,0,0,157,152,145,128,253,258,579,556,816,771,2800,2263,1911,545,3073,2722,1162,986,29971,29971,5714,1681,5822,5618,29970,29971,29972,29973,29973,29973,29977,29978,29973,29974,29980,29980,29980,29981,29980,29980,29983,29984,29986,29987,29986]} 1. Nf3 {[%emt 0:00:40]} Nf6 {[%emt 0:09:16]} 2. d4 {[%emt 0:01:04]} b6 {[%emt 0:01:58]} 3. g3 {[%emt 0:00:17]} Bb7 {[%emt 0:00:02]} 4. Bg2 {[%emt 0:00:06]} g6 {[%emt 0:00:46]} 5. c4 {[%emt 0:02:19]} Bg7 {[%emt 0:00:07]} 6. O-O {[%emt 0:00:28]} O-O {[%emt 0:00:07]} 7. Nc3 {[%emt 0:00:43]} d6 {[%emt 0:00:38]} 8. Re1 {[%emt 0:02:18]} Nbd7 {[%emt 0:00:15]} 9. e4 {[%emt 0:00:25]} e5 {[%emt 0:00:11]} 10. d5 {[%emt 0:01:27] E68: King's Indian: Fianchetto: 6...Nbd7 7 0-0 e5 8 e4.} a5 {[%emt 0:01:55]} 11. b3 {[%emt 0:07:12]} Nc5 {[%emt 0:05:08]} 12. Rb1 {[%emt 0:02:21] White has an edge.} Bc8 {[%emt 0:00:50] [#]} 13. Re2 $146 {[%emt 0:05:14]} ({Predecessor:} 13. Qc2 Nh5 14. Nd2 f5 15. a3 f4 16. b4 Nd7 17. Nb5 axb4 18. axb4 Ndf6 19. Rb3 {0-1 (54) Pantsulaia,L (2587)-Bernadskiy,V (2636) Cattolica 2022}) 13... Nh5 {[%emt 0:07:11]} 14. Ne1 {[%emt 0:05:10]} f5 {[%emt 0:03:13]} 15. exf5 {[%emt 0:35:44]} Bxf5 {[%emt 0:09:36]} 16. Rbb2 {[%emt 0:00:01]} e4 {[%emt 0:09:00]} ({Black should try} 16... Qd7 $1 $15) 17. Nxe4 $11 {[%emt 0:00:22]} Bxb2 {[%emt 0:05:07]} 18. Bxb2 {[%emt 0:00:03]} Nxe4 {[%emt 0:00:12]} 19. Bxe4 {[%emt 0:00:06]} Bxe4 {[%emt 0:00:12]} 20. Rxe4 {[%emt 0:00:04]} Re8 {[%emt 0:05:57]} 21. Rh4 {[%emt 0:02:59]} (21. Re6 $5 {[%cal Rd1d4]}) 21... Ng7 $2 {[%emt 0:07:32]} (21... Qe7 $11 22. Nf3 Rf8) 22. Nf3 $1 $18 {[%emt 0:01:17]} ({Weaker is} 22. Bxg7 Kxg7 23. Nf3 Qe7 $11) 22... Nf5 {[%emt 0:01:18]} 23. Rf4 {[%emt 0:00:25][%cal Of4f5] Hoping for Rxf5!} Qe7 {[%emt 0:05:14]} 24. Rxf5 $2 {[%emt 0:03:57]} gxf5 $11 {[%emt 0:00:28]} 25. Qd4 {[%emt 0:00:07] Threatening mate with Qh8+.} Rf8 $1 {[%emt 0:00:47]} 26. h4 {[%emt 0:02:51]} (26. Qh8+ $1 $11 Kf7 27. Qxh7+ Ke8 28. Qg6+ Qf7 29. Qh6) 26... Kf7 $17 {[%emt 0:02:13][%cal Of5f4,Bg8f7,Bf7e8,Be8d8][%mdl 32]} 27. Ng5+ {[%emt 0:01:42]} Ke8 {[%emt 0:00:16][%cal Of5f4]} 28. Ne6 {[%emt 0:01:05]} Rg8 {[%emt 0:00:48]} (28... Kd7 $17 {Threatens to win with ...Rfe8.} 29. Qf4 Rf7) 29. c5 $11 {[%emt 0:02:57]} bxc5 {[%emt 0:03:30]} 30. Qa4+ {[%emt 0:00:28]} Qd7 {[%emt 0:03:30]} 31. Nxc7+ $1 {[%emt 0:01:58]} Kd8 {[%emt 0:00:02]} (31... Ke7 $2 32. Bf6+ $1 {[%mdl 512]} Kxf6 33. Qxd7 $18) 32. Nxa8 {[%emt 0:00:07] White wants to mate with Bf6+. Chess con chili.} Qxa4 {[%emt 0:01:26]} 33. bxa4 {[%emt 0:00:18] aiming for Kg2.} ({Not} 33. Bf6+ $2 Ke8 34. bxa4 Kf7 $19) 33... Rg4 $1 {[%emt 0:00:42]} 34. f3 {[%emt 0:06:28]} Rc4 {[%emt 0:04:32] White now steadily converts the win.} (34... Rb4 $1 $11 35. Bc3 Rxa4) 35. Bf6+ $16 {[%emt 0:00:25]} Ke8 {[%emt 0:00:21] [#]} 36. Nc7+ $1 {[%emt 0:07:29]} Kd7 {[%emt 0:14:10]} (36... Kf7 $16 37. Bg5 Rxa4) 37. Nb5 $18 {[%emt 0:00:06]} Rxa4 $2 {[%emt 0:00:00]} (37... Rc1+ {is more resistant.} 38. Kf2 Rc2+ 39. Ke3 Rxa2) 38. a3 {[%emt 0:00:37]} Rc4 {[%emt 0:00:00]} 39. Bc3 {[%emt 0:01:36] And now h5 would win.} Ke7 {[%emt 0:01:30]} 40. h5 {[%emt 0:00:53]} Ra4 {[%emt 0:00:00]} 41. Kf2 {[%emt 0:01:24]} Kd8 {[%emt 0:01:00]} 42. Ke2 {[%emt 0:00:02]} Kc8 {[%emt 0:00:30]} 43. Kd3 {[%emt 0:00:56]} Kb7 {[%emt 0:00:00]} 44. Nxd6+ {[%emt 0:01:34]} Kb6 {[%emt 0:00:00]} 45. Kc2 {[%emt 0:00:17]} (45. Bb2 $142 Kc7 46. Nxf5) 45... c4 {[%emt 0:00:00]} 46. Bd4+ {[%emt 0:00:27]} Ka6 {[%emt 0:00:00]} 47. Bb2 {[%emt 0:00:14] White mates.} Kb6 {[%emt 0:00:00]} 48. Kc3 {[%emt 0:00:21]} Kc5 {[%emt 0:00:00]} 49. Nc8 {[%emt 0:01:15]} Rb4 {[%emt 0:00:00]} 50. axb4+ {[%emt 0:00:14]} axb4+ {[%emt 0:00:00]} 51. Kc2 {[%emt 0:00:01]} Kxd5 {[%emt 0:00:00]} 52. Nb6+ {[%emt 0:00:30]} Kc5 {[%emt 0:00:07]} 53. Nd7+ {[%emt 0:00:03]} Kd6 {[%emt 0:00:15]} 54. Nf6 {[%emt 0:00:06]} c3 {[%emt 0:00:22] [#]} 55. Bxc3 $1 {[%emt 0:00:13]} bxc3 {[%emt 0:00:02]} (55... h6 56. Bxb4+) 56. Nxh7 {[%emt 0:00:02]} Kd5 {[%emt 0:06:14] Weighted Error Value: White=0.14 (very precise) /Black=0.65} 1-0

[Event "1st Henriquez Urena Memorial 2022"]
[Site "Santo Domingo"]
[Date "2022.09.22"]
[Round "9.8"]
[White "Crispin Ferreras, Darvi Abraham"]
[Black "Dominguez, Jose Manuel"]
[Result "1/2-1/2"]
[ECO "C40"]
[WhiteElo "2160"]
[BlackElo "2180"]
[Annotator "TA"]
[PlyCount "48"]
[EventDate "2022.09.16"]
[EventType "swiss"]
[EventCountry "DOM"]
[SourceTitle "playchess.com"]
[Source "ChessBase"]
[SourceQuality "1"]
[TimeControl "5400+30"]

{[%evp 9,48,48,64,62,67,43,60,62,76,25,27,14,20,-9,0,0,17,-10,0,-9,0,-22,-15,-34,-8,-50,16,14,1,0,5,5,9,0,26,-60,-61,-30,-55,-198,259]} 1. e4 {[%emt 0:00:56]} e5 {[%emt 0:01:38]} 2. Nf3 {[%emt 0:03:12]} Qe7 {[%emt 0:01:20]} 3. Bc4 {[%emt 0:01:11]} d6 {[%emt 0:00:04]} 4. Nc3 {[%emt 0:01:03]} c6 {[%emt 0:00:04]} 5. a4 {[%emt 0:01:37]} Bg4 {[%emt 0:03:55]} 6. h3 {[%emt 0:04:20] C40: Latvian and Elephant Gambits.} Bh5 {[%emt 0:00:14]} 7. Be2 {[%emt 0:00:15] [#] White is more active.} a5 $146 {[%emt 0:04:38]} ({Predecessor:} 7... Nd7 8. d3 h6 9. Nh2 Bxe2 10. Qxe2 Nc5 11. Be3 Ne6 12. Nf3 Qf6 13. Qd2 g5 {0-1 (72) Mendeiros,J (2222)-Lourmande,C (2100) France 2005}) 8. d4 {[%emt 0:00:47] White is slightly better.} Nf6 {[%emt 0:02:32]} 9. dxe5 {[%emt 0:24:05]} ({Better is} 9. O-O $16) 9... dxe5 $11 {[%emt 0:01:14]} 10. Nd2 {[%emt 0:00:02]} Bg6 {[%emt 0:02:49]} 11. Bd3 {[%emt 0:11:56]} Qc7 {[%emt 0:00:31]} 12. O-O {[%emt 0:00:18]} Nbd7 {[%emt 0:05:04]} 13. Nb3 {[%emt 0:03:53]} (13. Nc4 $5 {[%cal Rf2f4]}) 13... Bb4 {[%emt 0:06:12]} 14. Qe2 {[%emt 0:00:07]} O-O {[%emt 0:02:28]} 15. Bg5 {[%emt 0:00:53]} h6 {[%emt 0:12:38]} 16. Bd2 {[%emt 0:00:22]} Rfe8 {[%emt 0:02:12]} 17. Nd1 {[%emt 0:00:55]} Bf8 {[%emt 0:06:01]} (17... Bxd2 $15 18. Nxd2 Nc5) 18. Kh2 {[%emt 0:07:08]} Kh8 {[%emt 0:07:20]} 19. g3 {[%emt 0:01:40]} Nc5 {[%emt 0:02:47]} 20. Nxc5 {[%emt 0:01:37]} Bxc5 {[%emt 0:00:02]} 21. b3 {[%emt 0:01:10]} Rad8 {[%emt 0:01:31][%cal Og6e4]} 22. Nb2 {[%emt 0:00:54] [#]} (22. f3 $11) 22... Nxe4 $1 {[%emt 0:03:02]} 23. Bxe4 {[%emt 0:00:21]} Bxe4 {[%emt 0:33:44]} 24. Be3 {[%emt 0:03:19]} ({White should play} 24. Bxh6 $15 Bg6 25. Be3 Bxe3 26. fxe3) 24... Bg6 $4 {[%emt 0:00:00][%mdl 40960] Weighted Error Value: White=0.34/Black=0.14 (very precise) . An unexpected result.} 1/2-1/2

[Event "1st Henriquez Urena Memorial 2022"]
[Site "Santo Domingo"]
[Date "2022.09.22"]
[Round "9.9"]
[White "Camacho Campusano, David Daniel"]
[Black "Arvelo Leo, Gian Carlo"]
[Result "1/2-1/2"]
[ECO "C01"]
[WhiteElo "2230"]
[BlackElo "2174"]
[Annotator "TA"]
[PlyCount "39"]
[EventDate "2022.09.16"]
[EventType "swiss"]
[EventCountry "DOM"]
[SourceTitle "playchess.com"]
[Source "ChessBase"]
[SourceQuality "1"]
[TimeControl "5400+30"]

{[%evp 21,22,3,8]} 1. e4 {[%emt 0:00:11]} e6 {[%emt 0:06:56]} 2. d4 {[%emt 0:00:12]} d5 {[%emt 0:00:08]} 3. exd5 {[%emt 0:00:35]} exd5 {[%emt 0:00:01]} 4. Nf3 {[%emt 0:00:31]} Nf6 {[%emt 0:00:07]} 5. Bd3 {[%emt 0:00:43]} Bd6 {[%emt 0:00:07]} 6. O-O {[%emt 0:00:13]} O-O {[%emt 0:00:04]} 7. Bg5 {[%emt 0:00:18]} Bg4 {[%emt 0:00:08]} 8. Nbd2 {[%emt 0:00:21]} Nbd7 {[%emt 0:00:09]} 9. c3 {[%emt 0:01:02]} c6 {[%emt 0:00:04]} 10. Re1 {[%emt 0:01:01]} Re8 {[%emt 0:00:24]} 11. Qc2 {[%emt 0:00:53]} Qc7 {[%emt 0:00:14] [#]} {Predecessor:} 12. Bh4 $146 {C01: French: Exchange Variation.} h6 13. Bg3 Nh5 14. Bh7+ Kf8 15. Bf5 Bxf5 16. Qxf5 Nxg3 17. hxg3 g6 18. Qc2 Kg7 19. Rxe8 Rxe8 20. Re1 {½-½ (85) Henderson de la Fuente,L (2490)-Quesada Perez,Y (2568) Chennai 2022} 1/2-1/2